fUSD/lending_fUSD_20260421
["ID","MTS","AMOUNT","RATE_DAILY","PERIOD"]
[420912352,1776713453346,-400.0,0.00025207,120]
[420912353,1776713453356,-356.0,0.00025207,120]
[420912354,1776713453365,-253.0,0.00025207,120]
[420912355,1776713453375,-250.0,0.00025207,120]
[420912356,1776713453384,-175.0,0.00025207,120]
[420912357,1776713453393,-314.7,0.0002521,2]
[420912358,1776713453403,-150.0,0.00025239,7]
[420912359,1776713453412,-150.0,0.00025282,4]
[420912360,1776713453422,-150.0,0.00025322,7]
[420912361,1776713453431,-260.0,0.00025358,6]
[420912362,1776713453440,-14207.04170027,0.00025361,4]
[420912363,1776713453450,-200.0,0.000254,2]
[420912364,1776713453460,-200.0,0.000254,2]
[420912365,1776713453469,-200.0,0.000254,2]
[420912366,1776713453479,-150.0,0.00025405,7]
[420912367,1776713453488,-150.0,0.00025424,4]
[420912368,1776713453498,-1093.97228058,0.0002545,2]
[420912369,1776713453507,-398.0,0.00025479,7]
[420912370,1776713453517,-150.0,0.00025487,4]
[420912371,1776713453527,-150.0,0.00025488,7]
[420912372,1776713453537,-2931.56,0.000255,7]
[420912373,1776713453547,-179.06984396,0.00025501,2]
[420912374,1776713453556,-500.0,0.00025511,2]
[420912375,1776713453565,-500.0,0.00025511,2]
[420912376,1776713453575,-2500.0,0.00025511,2]
[420912377,1776713453585,-450.0,0.00025516,2]
[420912378,1776713453594,-150.0,0.00025566,4]
[420912379,1776713453604,-150.0,0.00025571,7]
[420912380,1776713453613,-380.52687238,0.00025593,2]
[420912381,1776713453623,-150.0,0.00025637,4]
[420912382,1776713453632,-150.0,0.00025637,4]
[420912383,1776713453643,-350.0,0.0002565,2]
[420912384,1776713453653,-150.0,0.00025654,7]
[420912385,1776713453663,-200.0,0.00025654,2]
[420912386,1776713453673,-200.0,0.00025654,2]
[420912387,1776713453682,-200.0,0.00025654,2]
[420912388,1776713453692,-375.84,0.00025654,30]
[420912389,1776713453702,-175.0,0.0002566,30]
[420912390,1776713453711,-151.0,0.00025669,2]
[420912391,1776713453721,-570.35,0.00025693,2]
[420912392,1776713453731,-568.11,0.00025693,2]
[420912393,1776713453740,-568.11,0.00025693,2]
[420912394,1776713453751,-183.38,0.00025693,2]
[420912395,1776713453761,-570.35,0.00025693,2]
[420912396,1776713453770,-568.11,0.00025693,2]
[420912397,1776713453780,-481.12,0.00025693,2]
[420912398,1776713453790,-638.28,0.00025693,2]
[420912399,1776713453800,-570.35,0.00025693,2]
[420912400,1776713453810,-638.27,0.00025693,2]
[420912401,1776713453820,-477.92,0.00025693,2]
[420912402,1776713453829,-477.92,0.00025693,2]
[420912403,1776713453840,-477.92,0.00025693,2]
[420912404,1776713453849,-568.11,0.00025693,2]
[420912405,1776713453859,-332.33,0.00025693,2]
[420912406,1776713453868,-638.27,0.00025693,2]
[420912407,1776713453878,-332.33,0.00025693,2]
[420912408,1776713453888,-183.38,0.00025693,2]
[420912409,1776713453898,-568.11,0.00025693,2]
[420912410,1776713453908,-638.28,0.00025695,2]
[420912411,1776713453917,-392.61,0.00025695,2]
[420912412,1776713454072,-570.35,0.00025695,2]
[420912413,1776713454082,-183.38,0.00025695,2]
[420912414,1776713454091,-638.27,0.00025695,2]
[420912415,1776713454101,-570.35,0.00025695,2]
[420912416,1776713454110,-568.11,0.00025695,2]
[420912417,1776713454119,-183.38,0.00025695,2]
[420912418,1776713454129,-568.11,0.00025696,2]
[420912419,1776713454139,-638.3,0.00025696,2]
[420912420,1776713454149,-570.39,0.00025696,2]
[420912421,1776713454158,-568.11,0.00025696,2]
[420912422,1776713454167,-638.27,0.00025696,2]
[420912423,1776713454177,-477.92,0.00025696,2]
[420912424,1776713454187,-477.92,0.00025697,2]
[420912425,1776713454196,-183.38,0.00025697,2]
[420912426,1776713454206,-332.33,0.00025697,2]
[420912427,1776713454215,-477.92,0.00025698,2]
[420912428,1776713454225,-568.11,0.00025698,2]
[420912429,1776713454235,-332.33,0.00025702,2]
[420912430,1776713454244,-332.33,0.00025702,2]
[420912431,1776713454254,-638.27,0.00025702,2]
[420912432,1776713454263,-332.33,0.00025704,2]
[420912433,1776713454272,-183.38,0.00025704,2]
[420912434,1776713454282,-183.38,0.00025704,2]
[420912435,1776713454291,-183.38,0.00025704,2]
[420912436,1776713454300,-568.11,0.00025707,2]
[420912437,1776713454309,-638.27,0.00025708,2]
[420912438,1776713454318,-162.0,0.00025708,3]
[420912439,1776713454328,-150.0,0.00025708,4]
[420912440,1776713454337,-500.0,0.00025726,2]
[420912441,1776713454346,-544.05,0.00025726,2]
[420912442,1776713454356,-1404.4,0.00025726,2]
[420912443,1776713454366,-500.0,0.00025726,2]
[420912444,1776713454377,-500.0,0.00025726,2]
[420912445,1776713454386,-500.0,0.00025726,2]
[420912446,1776713454395,-1173.29,0.00025726,2]
[420912447,1776713454404,-500.0,0.00025726,2]
[420912448,1776713454414,-500.0,0.00025726,2]
[420912449,1776713454424,-570.35,0.00025726,2]
[420912450,1776713454433,-638.29,0.00025734,2]
[420912451,1776713454442,-638.27,0.00025734,2]
[420912452,1776713454452,-570.35,0.00025734,2]
[420912453,1776713454461,-150.0,0.00025737,7]
[420912454,1776713454470,-398.0,0.00025753,7]
[420912455,1776713454480,-150.0,0.00025787,4]
[420912456,1776713454489,-150.0,0.0002582,7]
[420912457,1776713454498,-1265.0,0.00025849,2]
[420912458,1776713454507,-150.0,0.0002585,4]
[420912459,1776713454517,-398.0,0.0002589,7]
[420912460,1776713454526,-150.0,0.0002589,2]
[420912461,1776713454535,-150.0,0.00025903,7]
[420912462,1776713454545,-200.0,0.00025911,2]
[420912463,1776713454554,-200.0,0.00025911,2]
[420912464,1776713454564,-200.0,0.00025911,2]
[420912465,1776713454573,-350.0,0.00025912,2]
[420912466,1776713454582,-150.0,0.00025986,7]
[420912467,1776713454591,-350.0,0.00025989,2]
[420912468,1776713454601,-606.10667034,0.0002599,2]
[420912469,1776713454610,-150.0,0.00025992,4]
[420912470,1776713454620,-4562.56220675,0.00026,2]
[420912471,1776713454629,-218.3625726,0.00026,2]
[420912472,1776713454638,-1049.0,0.00026,2]
[420912473,1776713454649,-200.0,0.00026,2]
[420912474,1776713454658,-160.46,0.00026027,2]
[420912475,1776713454668,-550.0,0.00026064,2]
[420912476,1776713454678,-150.0,0.00026069,7]
[420912477,1776713454687,-150.0,0.00026087,4]
[420912478,1776713454697,-2931.56,0.000261,7]
[420912479,1776713454706,-1317.12,0.0002611,5]
[420912480,1776713454716,-150.0,0.00026134,4]
[420912481,1776713454726,-150.0,0.00026152,7]
[420912482,1776713454736,-150.0,0.00026235,7]
[420912483,1776713454746,-163.0,0.00026252,2]
[420912484,1776713454756,-150.0,0.00026276,4]
[420912485,1776713454766,-1368.496944,0.000263,2]
[420912486,1776713454776,-314.7,0.00026307,2]
[420912487,1776713454786,-150.0,0.00026312,4]
[420912488,1776713454796,-150.0,0.00026312,4]
[420912489,1776713454806,-150.0,0.00026318,7]
[420912490,1776713454816,-2817.0,0.00026348,3]
[420912491,1776713454825,-150.0,0.00026387,4]
[420912492,1776713454834,-27734.04043912,0.000264,2]
[420912493,1776713454844,-150.0,0.00026401,7]
[420912494,1776713454853,-150.0,0.00026418,4]
[420912495,1776713454862,-162.0,0.00026432,3]
[420912496,1776713454872,-1576.0,0.00026432,3]
[420912497,1776713454882,-510.0,0.00026454,120]
[420912498,1776713454891,-357.0,0.00026457,120]
[420912499,1776713454901,-250.0,0.00026468,120]
[420912500,1776713454910,-175.0,0.00026468,120]
[420912501,1776713454920,-150.0,0.00026484,7]
[420912502,1776713454929,-151.0,0.00026491,2]
[420912503,1776713454938,-638.27,0.00026515,2]
[420912504,1776713454947,-568.11,0.00026515,2]
[420912505,1776713454956,-568.11,0.00026515,2]
[420912506,1776713454966,-570.35,0.00026515,2]
[420912507,1776713454975,-332.33,0.00026515,2]
[420912508,1776713454984,-332.33,0.00026515,2]
[420912509,1776713454994,-638.27,0.00026515,2]
[420912510,1776713455004,-568.11,0.00026515,2]
[420912511,1776713455013,-638.27,0.00026515,2]
[420912512,1776713455023,-477.92,0.00026515,2]
[420912513,1776713455032,-151.0,0.00026515,2]
[420912514,1776713455041,-570.35,0.00026515,2]
[420912515,1776713455051,-570.35,0.00026515,2]
[420912516,1776713455060,-570.35,0.00026515,2]
[420912517,1776713455070,-332.32,0.00026515,2]
[420912518,1776713455079,-183.38,0.00026516,2]
[420912519,1776713455089,-638.27,0.00026516,2]
[420912520,1776713455098,-332.33,0.00026516,2]
[420912521,1776713455107,-568.11,0.00026516,2]
[420912522,1776713455116,-477.92,0.00026516,2]
[420912523,1776713455126,-570.35,0.00026516,2]
[420912524,1776713455135,-477.92,0.00026516,2]
[420912525,1776713455144,-568.11,0.00026517,2]
[420912526,1776713455155,-570.35,0.00026518,2]
[420912527,1776713455165,-638.27,0.00026518,2]
[420912528,1776713455175,-638.29,0.00026519,2]
[420912529,1776713455184,-332.33,0.0002652,2]
[420912530,1776713455194,-477.92,0.0002652,2]
[420912531,1776713455203,-568.11,0.0002652,2]
[420912532,1776713455213,-638.27,0.0002652,2]
[420912533,1776713455223,-183.38,0.00026521,2]
[420912534,1776713455233,-151.0,0.00026522,2]
[420912535,1776713455243,-570.35,0.00026524,2]
[420912536,1776713455254,-638.27,0.00026524,2]
[420912537,1776713455264,-477.92,0.00026524,2]
[420912538,1776713455274,-568.11,0.00026524,2]
[420912539,1776713455283,-183.38,0.00026525,2]
[420912540,1776713455293,-477.92,0.00026525,2]
[420912541,1776713455303,-638.27,0.00026525,2]
[420912542,1776713455312,-297.25,0.00026525,60]
[420912543,1776713455321,-638.3,0.00026525,2]
[420912544,1776713455331,-183.38,0.00026525,2]
[420912545,1776713455340,-638.27,0.00026525,2]
[420912546,1776713455350,-570.35,0.00026526,2]
[420912547,1776713455359,-183.38,0.00026529,2]
[420912548,1776713455368,-166.814472,0.00026529,2]
[420912549,1776713455378,-166.814472,0.00026529,2]
[420912550,1776713455388,-166.814472,0.00026529,2]
[420912551,1776713455397,-166.814472,0.00026529,2]
[420912552,1776713455406,-332.33,0.00026529,2]
[420912553,1776713455416,-568.11,0.0002653,2]
[420912554,1776713455425,-568.11,0.00026546,2]
[420912555,1776713455434,-500.0,0.00026554,2]
[420912556,1776713455444,-500.0,0.00026554,2]
[420912557,1776713455453,-2500.0,0.00026554,2]
[420912558,1776713455462,-572.59,0.00026556,2]
[420912559,1776713455472,-568.11,0.00026556,2]
[420912560,1776713455481,-150.0,0.0002656,4]
[420912561,1776713455491,-150.0,0.00026567,7]
[420912562,1776713455500,-477.92,0.00026571,2]
[420912563,1776713455509,-570.35,0.00026571,2]
[420912564,1776713455519,-477.92,0.00026571,2]
[420912565,1776713455528,-650.0,0.00026612,2]
[420912566,1776713455538,-150.0,0.0002665,7]
[420912567,1776713455547,-150.0,0.00026686,4]
[420912568,1776713455556,-150.0,0.00026702,4]
[420912569,1776713455566,-150.0,0.00026733,7]
[420912570,1776713455575,-162.0,0.00026752,3]
[420912571,1776713455585,-166.49,0.000268,7]
[420912572,1776713455594,-2931.56,0.000268,7]
[420912573,1776713455604,-150.0,0.00026816,7]
[420912574,1776713455613,-2817.0,0.00026829,3]
[420912575,1776713455623,-150.0,0.00026844,4]
[420912576,1776713455634,-150.0,0.00026899,7]
[420912577,1776713455643,-3800.0,0.000269,9]
[420912578,1776713455653,-350.0,0.00026967,2]
[420912579,1776713455663,-150.0,0.00026982,7]
[420912580,1776713455672,-150.0,0.00026986,4]
[420912581,1776713455682,-150.0,0.00026986,4]
[420912582,1776713455691,-150.0,0.00026986,4]
[420912583,1776713455701,-169.78843063,0.00026986,4]
[420912584,1776713455710,-150.0,0.00026986,4]
[420912585,1776713455719,-250.0,0.00027,2]
[420912586,1776713455728,-20000.0,0.00027,2]
[420912587,1776713455738,-1044.04629542,0.00027,2]
[420912588,1776713455749,-530.0,0.00027,2]
[420912589,1776713455758,-310.08472907,0.00027,2]
[420912590,1776713455767,-2000.0,0.00027,2]
[420912591,1776713455777,-1049.0,0.00027,2]
[420912592,1776713455786,-1093.97228058,0.00027,2]
[420912593,1776713455796,-2547.250825,0.0002701,2]
[420912594,1776713455805,-1447.56490554,0.00027014,2]
[420912595,1776713455814,-150.0,0.00027065,7]
[420912596,1776713455823,-162.0,0.00027072,3]
[420912597,1776713455832,-1358.61813,0.00027075,2]
[420912598,1776713455841,-500.0,0.00027089,2]
[420912599,1776713455851,-544.05,0.00027089,2]
[420912600,1776713455860,-1404.4,0.00027089,2]
[420912601,1776713455870,-500.0,0.00027089,2]
[420912602,1776713455879,-500.0,0.00027089,2]
[420912603,1776713455889,-500.0,0.00027089,2]
[420912604,1776713455898,-1173.29,0.00027089,2]
[420912605,1776713455907,-500.0,0.00027089,2]
[420912606,1776713455917,-500.0,0.00027089,2]
[420912607,1776713455926,-15466.92,0.000271,2]
[420912608,1776713455935,-2240.427984,0.000271,2]
[420912609,1776713455945,-2240.427984,0.000271,2]
[420912610,1776713455954,-2240.427984,0.000271,2]
[420912611,1776713455963,-2240.427984,0.000271,2]
[420912612,1776713455972,-260.0,0.0002713,8]
[420912613,1776713455983,-150.0,0.00027148,7]
[420912614,1776713455993,-350.0,0.00027148,2]
[420912615,1776713456003,-750.0,0.0002716,2]
[420912616,1776713456012,-152.77,0.0002717,7]
[420912617,1776713456022,-150.0,0.00027185,2]
[420912618,1776713456032,-398.0,0.00027185,7]
[420912619,1776713456041,-411.0,0.00027185,7]
[420912620,1776713456051,-350.0,0.00027217,2]
[420912621,1776713456061,-150.0,0.00027231,7]
[420912622,1776713456075,-500.0,0.00027281,2]
[420912623,1776713456085,-177.81165684,0.000273,30]
[420912624,1776713456095,-151.0,0.00027313,2]
[420912625,1776713456106,-150.0,0.00027314,7]
[420912626,1776713456116,-20275.26228876,0.00027318,2]
[420912627,1776713456127,-332.33,0.00027336,2]
[420912628,1776713456138,-183.38,0.00027336,2]
[420912629,1776713456150,-183.38,0.00027337,2]
[420912630,1776713456160,-183.38,0.00027337,2]
[420912631,1776713456170,-638.27,0.00027337,2]
[420912632,1776713456181,-183.38,0.00027337,2]
[420912633,1776713456191,-568.11,0.00027337,2]
[420912634,1776713456201,-638.27,0.00027337,2]
[420912635,1776713456210,-332.33,0.00027337,2]
[420912636,1776713456220,-570.35,0.00027337,2]
[420912637,1776713456229,-183.38,0.00027337,2]
[420912638,1776713456238,-570.35,0.00027337,2]
[420912639,1776713456248,-183.38,0.00027337,2]
[420912640,1776713456260,-332.33,0.00027337,2]
[420912641,1776713456270,-477.92,0.00027337,2]
[420912642,1776713456281,-477.92,0.00027337,2]
[420912643,1776713456291,-183.38,0.00027337,2]
[420912644,1776713456300,-332.33,0.00027338,2]
[420912645,1776713456309,-570.35,0.00027338,2]
[420912646,1776713456319,-332.33,0.00027338,2]
[420912647,1776713456328,-638.27,0.00027338,2]
[420912648,1776713456338,-638.27,0.00027338,2]
[420912649,1776713456347,-568.11,0.00027338,2]
[420912650,1776713456356,-638.27,0.00027338,2]
[420912651,1776713456366,-477.92,0.00027339,2]
[420912652,1776713456375,-337.52,0.0002734,2]
[420912653,1776713456384,-183.38,0.00027341,2]
[420912654,1776713456394,-638.27,0.00027341,2]
[420912655,1776713456403,-477.92,0.00027341,2]
[420912656,1776713456412,-570.35,0.00027341,2]
[420912657,1776713456421,-332.33,0.00027343,2]
[420912658,1776713456430,-638.27,0.00027343,2]
[420912659,1776713456440,-183.38,0.00027343,2]
[420912660,1776713456449,-570.35,0.00027345,2]
[420912661,1776713456458,-570.35,0.00027345,2]
[420912662,1776713456467,-332.33,0.00027345,2]
[420912663,1776713456477,-477.92,0.00027345,2]
[420912664,1776713456486,-477.92,0.00027345,2]
[420912665,1776713456496,-477.92,0.00027346,2]
[420912666,1776713456506,-570.35,0.00027347,2]
[420912667,1776713456515,-638.27,0.00027347,2]
[420912668,1776713456525,-568.11,0.00027351,2]
[420912669,1776713456534,-436.87191469,0.00027354,5]
[420912670,1776713456543,-568.11,0.00027368,2]
[420912671,1776713456552,-272.38583044,0.0002737,30]
[420912672,1776713456561,-332.33,0.00027378,2]
[420912673,1776713456570,-150.0,0.00027387,2]
[420912674,1776713456580,-4149.48388365,0.0002739,2]
[420912675,1776713456590,-8197.45036408,0.0002739,2]
[420912676,1776713456602,-1576.0,0.00027392,3]
[420912677,1776713456611,-1576.0,0.00027392,3]
[420912678,1776713456621,-332.33,0.00027393,2]
[420912679,1776713456630,-183.38,0.00027393,2]
[420912680,1776713456640,-332.33,0.00027393,2]
[420912681,1776713456649,-638.27,0.00027393,2]
[420912682,1776713456658,-638.29,0.00027393,2]
[420912683,1776713456667,-568.11,0.00027393,2]
[420912684,1776713456677,-477.92,0.00027393,2]
[420912685,1776713456686,-500.0,0.00027396,2]
[420912686,1776713456696,-500.0,0.00027396,2]
[420912687,1776713456706,-2500.0,0.00027396,2]
[420912688,1776713456715,-151.0,0.00027397,2]
[420912689,1776713456725,-583.91558948,0.00027397,2]
[420912690,1776713456734,-5000.0,0.00027397,2]
[420912691,1776713456743,-3956.99139891,0.00027397,2]
[420912692,1776713456752,-267.46074303,0.00027397,2]
[420912693,1776713456762,-179.4817088,0.00027397,7]
[420912694,1776713456772,-500.0,0.00027397,2]
[420912695,1776713456781,-192.27068203,0.00027397,7]
[420912696,1776713456790,-150.0,0.00027397,7]
[420912697,1776713456799,-300.0,0.00027397,2]
[420912698,1776713456808,-1460.16,0.00027397,2]
[420912699,1776713456817,-622.81,0.00027397,2]
[420912700,1776713456826,-1000.0,0.00027397,20]
[420912701,1776713456835,-200.0,0.00027397,2]
[420912702,1776713456844,-200.0,0.00027397,2]
[420912703,1776713456853,-200.0,0.00027397,2]
[420912704,1776713456863,-200.0,0.00027397,2]
[420912705,1776713456872,-200.0,0.00027397,2]
[420912706,1776713456882,-200.0,0.00027397,2]
[420912707,1776713456891,-200.0,0.00027397,2]
[420912708,1776713456900,-200.0,0.00027397,2]
[420912709,1776713456910,-200.0,0.00027397,2]
[420912710,1776713456919,-200.0,0.00027397,2]
[420912711,1776713456928,-200.0,0.00027397,2]
[420912712,1776713456937,-200.0,0.00027397,2]
[420912713,1776713456947,-200.0,0.00027397,2]
[420912714,1776713456956,-200.0,0.00027397,2]
[420912715,1776713456966,-200.0,0.00027397,2]
[420912716,1776713456975,-200.0,0.00027397,2]
[420912717,1776713456984,-200.0,0.00027397,2]
[420912718,1776713456994,-200.0,0.00027397,2]
[420912719,1776713457003,-200.0,0.00027397,2]
[420912720,1776713457013,-236.0,0.00027397,2]
[420912721,1776713457022,-170.03431,0.00027397,2]
[420912722,1776713457031,-1002.9495,0.00027397,2]
[420912723,1776713457040,-1002.9495,0.00027397,2]
[420912724,1776713457049,-1002.9495,0.00027397,2]
[420912725,1776713457058,-1002.9495,0.00027397,2]
[420912726,1776713457067,-1002.9495,0.00027397,2]
[420912727,1776713457076,-1002.9495,0.00027397,2]
[420912728,1776713457085,-1002.9495,0.00027397,2]
[420912729,1776713457094,-1002.9495,0.00027397,2]
[420912730,1776713457102,-1002.9495,0.00027397,2]
[420912731,1776713457112,-1002.9495,0.00027397,2]
[420912732,1776713457121,-1002.9495,0.00027397,2]
[420912733,1776713457130,-1002.9495,0.00027397,2]
[420912734,1776713457139,-544.35105089,0.00027397,2]
[420912735,1776713457148,-1373.707189,0.00027397,2]
[420912736,1776713457157,-1373.707189,0.00027397,2]
[420912737,1776713457167,-1373.707189,0.00027397,2]
[420912738,1776713457176,-1373.707189,0.00027397,2]
[420912739,1776713457184,-1373.707189,0.00027397,2]
[420912740,1776713457194,-1373.707189,0.00027397,2]
[420912741,1776713457202,-1373.707189,0.00027397,2]
[420912742,1776713457211,-1373.707189,0.00027397,2]
[420912743,1776713457221,-1373.707189,0.00027397,2]
[420912744,1776713457230,-1373.707189,0.00027397,2]
[420912745,1776713457239,-1373.707189,0.00027397,2]
[420912746,1776713457248,-1373.707189,0.00027397,2]
[420912747,1776713457257,-206.357507,0.00027397,3]
[420912748,1776713457267,-1760.236674,0.00027397,2]
[420912749,1776713457276,-1760.236674,0.00027397,2]
[420912750,1776713457286,-1760.236674,0.00027397,2]
[420912751,1776713457295,-1760.236674,0.00027397,2]
[420912752,1776713457304,-1760.236674,0.00027397,2]
[420912753,1776713457314,-1760.236674,0.00027397,2]
[420912754,1776713457323,-1760.236674,0.00027397,2]
[420912755,1776713457332,-1760.236674,0.00027397,2]
[420912756,1776713457340,-1760.236674,0.00027397,2]
[420912757,1776713457349,-1760.236674,0.00027397,2]
[420912758,1776713457359,-1760.236674,0.00027397,2]
[420912759,1776713457368,-1760.236674,0.00027397,2]
[420912760,1776713457378,-151.0,0.00027397,2]
[420912761,1776713457388,-151.0,0.00027397,2]
[420912762,1776713457398,-164.235707,0.00027397,2]
[420912763,1776713457408,-151.0,0.00027397,2]
[420912764,1776713457417,-151.0,0.00027397,2]
[420912765,1776713457426,-151.0,0.00027397,2]
[420912766,1776713457436,-151.0,0.00027397,2]
[420912767,1776713457446,-151.0,0.00027397,2]
[420912768,1776713457455,-151.0,0.00027397,2]
[420912769,1776713457465,-151.0,0.00027397,2]
[420912770,1776713457474,-151.0,0.00027397,2]
[420912771,1776713457483,-165.16,0.000274,7]
[420912772,1776713457492,-2931.56,0.000274,7]
[420912773,1776713457502,-314.7,0.00027403,2]
[420912774,1776713457512,-1360.24,0.00027452,2]
[420912775,1776713457521,-203.17705778,0.000275,2]
[420912776,1776713457531,-2000.0,0.000275,2]
[420912777,1776713457540,-500.0,0.00027581,120]
[420912778,1776713457549,-166.814472,0.00027611,7]
[420912779,1776713457559,-166.814472,0.00027611,7]
[420912780,1776713457568,-166.814472,0.00027611,7]
[420912781,1776713457578,-166.814472,0.00027611,7]
[420912782,1776713457587,-3271.50937349,0.00027645,2]
[420912783,1776713457597,-380.52687237,0.00027647,2]
[420912784,1776713457606,-500.0,0.0002767,30]
[420912785,1776713457618,-544.05,0.0002767,120]
[420912786,1776713457627,-1404.4,0.0002767,120]
[420912787,1776713457636,-500.0,0.0002767,120]
[420912788,1776713457645,-500.0,0.0002767,2]
[420912789,1776713457655,-500.0,0.0002767,120]
[420912790,1776713457665,-1173.29,0.0002767,7]
[420912791,1776713457675,-428.61773213,0.0002767,30]
[420912792,1776713457684,-500.0,0.0002767,120]
[420912793,1776713457694,-1089.53386482,0.00027671,7]
[420912794,1776713457703,-242.97,0.000277,10]
[420912795,1776713457712,-317.04,0.000277,10]
[420912796,1776713457722,-850.0,0.00027708,5]
[420912797,1776713457731,-3459.6726146,0.00027713,2]
[420912798,1776713457740,-510.0,0.00027776,120]
[420912799,1776713457750,-357.0,0.00027779,120]
[420912800,1776713457759,-352.25125012,0.00027789,2]
[420912801,1776713457769,-250.0,0.00027791,120]
[420912802,1776713457778,-175.0,0.00027791,120]
[420912803,1776713457788,-281.82884056,0.000279,2]
[420912804,1776713457798,-5000.0,0.00027945,2]
[420912805,1776713457808,-277.35679052,0.00027945,2]
[420912806,1776713457817,-300.0,0.0002797,2]
[420912807,1776713457827,-164.32,0.00027999,7]
[420912808,1776713457836,-51347.28364143,0.00028,2]
[420912809,1776713457846,-160.0,0.00028,2]
[420912810,1776713457856,-1049.0,0.00028,2]
[420912811,1776713457865,-2240.427984,0.00028,7]
[420912812,1776713457874,-2240.427984,0.00028,7]
[420912813,1776713457883,-2240.427984,0.00028,7]
[420912814,1776713457892,-2240.427984,0.00028,7]
[420912815,1776713457902,-200.0,0.00028,2]
[420912816,1776713457912,-713.01,0.00028,2]
[420912817,1776713457921,-713.01,0.00028,2]
[420912818,1776713457931,-713.01,0.00028,2]
[420912819,1776713457940,-500.0,0.00028062,120]
[420912820,1776713457949,-500.0,0.00028099,15]
[420912821,1776713457959,-270.07571144,0.00028129,2]
[420912822,1776713457968,-332.33,0.00028159,2]
[420912823,1776713457977,-638.27,0.00028159,2]
[420912824,1776713457987,-332.33,0.00028159,2]
[420912825,1776713457997,-570.35,0.00028159,2]
[420912826,1776713458007,-332.33,0.00028159,2]
[420912827,1776713458025,-183.38,0.00028159,2]
[420912828,1776713458037,-183.38,0.00028159,2]
[420912829,1776713458046,-500.0,0.00028159,120]
[420912830,1776713458056,-500.0,0.00028159,120]
[420912831,1776713458065,-1373.707189,0.00028159,7]
[420912832,1776713458076,-1373.707189,0.00028159,7]
[420912833,1776713458086,-1373.707189,0.00028159,7]
[420912834,1776713458095,-1373.707189,0.00028159,7]
[420912835,1776713458302,-1760.236674,0.00028159,7]
[420912836,1776713458312,-1760.236674,0.00028159,7]
[420912837,1776713458322,-1760.236674,0.00028159,7]
[420912838,1776713458331,-1760.236674,0.00028159,7]
[420912839,1776713458341,-2500.0,0.00028159,5]
[420912840,1776713458351,-568.1,0.00028159,2]
[420912841,1776713458360,-183.38,0.00028159,2]
[420912842,1776713458370,-332.33,0.00028159,2]
[420912843,1776713458379,-638.27,0.00028159,2]
[420912844,1776713458388,-1002.9495,0.0002816,7]
[420912845,1776713458398,-1002.9495,0.0002816,7]
[420912846,1776713458407,-1002.9495,0.0002816,7]
[420912847,1776713458417,-1002.9495,0.0002816,7]
[420912848,1776713458427,-570.35,0.0002816,2]
[420912849,1776713458437,-183.38,0.0002816,2]
[420912850,1776713458446,-568.11,0.0002816,2]
[420912851,1776713458456,-570.35,0.0002816,2]